[Event "*** SCC Grand Prix: Titled Tuesday Blitz"]
[Site "Chess.com"]
[Date "2020.08.11"]
[Round "8"]
[White "beatnoguera"]
[Black "talaicito"]
[Result "0-1"]
[WhiteElo "1807"]
[BlackElo "2094"]
[TimeControl "180+1"]
[EndTime "11:35:19 PDT"]
[Termination "talaicito won by resignation"]

1. e4 {[%clk 0:03:00.9]} 1... e5 {[%clk 0:02:59.7]} 2. Nf3 {[%clk 0:03:01.1]}
2... Nc6 {[%clk 0:02:59.6]} 3. Bb5 {[%clk 0:03:01]} 3... a6 {[%clk 0:02:59.7]}
4. Ba4 {[%clk 0:03:00.8]} 4... Nf6 {[%clk 0:03:00.3]} 5. O-O {[%clk 0:03:00.5]}
5... b5 {[%clk 0:03:00.8]} 6. Bb3 {[%clk 0:03:00.7]} 6... Be7 {[%clk 0:03:01.2]}
7. Re1 {[%clk 0:03:01.1]} 7... d6 {[%clk 0:03:01.3]} 8. c3 {[%clk 0:03:01.6]}
8... O-O {[%clk 0:03:01.2]} 9. h3 {[%clk 0:03:00.8]} 9... Nb8 {[%clk 0:03:01.7]}
10. a4 {[%clk 0:03:00.8]} 10... Bb7 {[%clk 0:02:53.4]} 11. Bc2 {[%clk
0:02:59.8]} 11... Nbd7 {[%clk 0:02:51.4]} 12. d4 {[%clk 0:02:59.9]} 12... Re8
{[%clk 0:02:47.8]} 13. Nbd2 {[%clk 0:02:57.1]} 13... Bf8 {[%clk 0:02:47.5]} 14.
d5 {[%clk 0:02:51.3]} 14... c6 {[%clk 0:02:37.1]} 15. dxc6 {[%clk 0:02:48.1]}
15... Bxc6 {[%clk 0:02:38]} 16. axb5 {[%clk 0:02:46.8]} 16... axb5 {[%clk
0:02:37.5]} 17. Rxa8 {[%clk 0:02:46.2]} 17... Qxa8 {[%clk 0:02:37.6]} 18. Bb1
{[%clk 0:02:31.3]} 18... Qb7 {[%clk 0:02:24.9]} 19. b4 {[%clk 0:02:27.6]} 19...
Nb6 {[%clk 0:02:22.5]} 20. Qb3 {[%clk 0:02:21.6]} 20... Rc8 {[%clk 0:01:59.4]}
21. Ng5 {[%clk 0:02:20.8]} 21... h6 {[%clk 0:01:55.1]} 22. Ngf3 {[%clk
0:02:17.3]} 22... Nc4 {[%clk 0:01:52]} 23. Nxc4 {[%clk 0:02:00.3]} 23... bxc4
{[%clk 0:01:52]} 24. Qxc4 {[%clk 0:02:00.6]} 24... d5 {[%clk 0:01:42.5]} 25.
exd5 {[%clk 0:01:55.1]} 25... Bxd5 {[%clk 0:01:43.4]} 26. Qd3 {[%clk 0:01:48.3]}
26... e4 {[%clk 0:01:41.2]} 27. Qe3 {[%clk 0:01:12.3]} 27... exf3 {[%clk
0:01:40.7]} 28. gxf3 {[%clk 0:01:12.7]} 28... Bxf3 {[%clk 0:01:36]} 29. Qf4
{[%clk 0:00:52.6]} 29... Bh1 {[%clk 0:01:03.9]} 30. Qg3 {[%clk 0:00:52.1]} 30...
Rxc3 {[%clk 0:00:59.5]} 31. Be3 {[%clk 0:00:42.8]} 31... Qf3 {[%clk 0:00:47.6]}
32. Qh2 {[%clk 0:00:38.6]} 32... Bxb4 {[%clk 0:00:20.8]} 33. Qxh1 {[%clk
0:00:29]} 33... Qxh1+ {[%clk 0:00:19.5]} 34. Kxh1 {[%clk 0:00:28.6]} 34... Rb3
{[%clk 0:00:19.6]} 35. Ba2 {[%clk 0:00:23]} 35... Bxe1 {[%clk 0:00:17.9]} 36.
Bxb3 {[%clk 0:00:23.3]} 36... h5 {[%clk 0:00:16.2]} 37. Kg2 {[%clk 0:00:23.5]}
37... g6 {[%clk 0:00:15.1]} 38. Kf3 {[%clk 0:00:23.4]} 38... Kg7 {[%clk
0:00:15.1]} 39. Kf4 {[%clk 0:00:23.6]} 39... Nh7 {[%clk 0:00:13.8]} 40. Bd4+
{[%clk 0:00:22.3]} 40... f6 {[%clk 0:00:13.3]} 41. Ke4 {[%clk 0:00:22]} 41...
Bd2 {[%clk 0:00:13.2]} 42. Kd3 {[%clk 0:00:22]} 42... Bc1 {[%clk 0:00:12.6]} 43.
Be6 {[%clk 0:00:21.9]} 43... Ng5 {[%clk 0:00:11.8]} 44. Bd7 {[%clk 0:00:20.8]}
44... Nf3 {[%clk 0:00:11.1]} 45. Bc3 {[%clk 0:00:20.3]} 45... Bg5 {[%clk
0:00:07.8]} 46. Ke2 {[%clk 0:00:20.4]} 46... Nh4 {[%clk 0:00:06.3]} 47. f3
{[%clk 0:00:19.6]} 47... Bf4 {[%clk 0:00:06]} 48. Kd3 {[%clk 0:00:19.5]} 48...
Be5 {[%clk 0:00:05.5]} 49. Bxe5 {[%clk 0:00:18.7]} 49... fxe5 {[%clk 0:00:05.5]}
50. Ke4 {[%clk 0:00:19.4]} 50... Kf6 {[%clk 0:00:05]} 51. Bc8 {[%clk 0:00:20.1]}
51... Nf5 {[%clk 0:00:04.6]} 52. Bd7 {[%clk 0:00:19]} 52... Ng3+ {[%clk
0:00:03.8]} 53. Ke3 {[%clk 0:00:18.2]} 53... Nf5+ {[%clk 0:00:03.5]} 54. Bxf5
{[%clk 0:00:17.9]} 54... gxf5 {[%clk 0:00:03.2]} 55. h4 {[%clk 0:00:17.9]} 55...
Ke6 {[%clk 0:00:03.3]} 56. Kd3 {[%clk 0:00:17.6]} 56... Kd5 {[%clk 0:00:03.5]}
57. Ke3 {[%clk 0:00:17.9]} 57... e4 {[%clk 0:00:03.7]} 58. f4 {[%clk 0:00:17.9]}
58... Kc4 {[%clk 0:00:03.7]} 59. Kd2 {[%clk 0:00:17.7]} 59... Kd4 {[%clk
0:00:04]} 60. Ke2 {[%clk 0:00:18.1]} 60... e3 {[%clk 0:00:04.6]} 61. Kd1 {[%clk
0:00:17.4]} 61... Ke4 {[%clk 0:00:05]} 62. Ke2 {[%clk 0:00:17.2]} 62... Kxf4
{[%clk 0:00:05.9]} 63. Kd3 {[%clk 0:00:15.5]} 63... Kf3 {[%clk 0:00:05.7]} 64.
Kd4 {[%clk 0:00:15.4]} 64... e2 {[%clk 0:00:06.6]} 0-1

[Event "*** SCC Grand Prix: Titled Tuesday Blitz"]
[Site "Chess.com"]
[Date "2020.08.11"]
[Round "8"]
[White "MestreSoares"]
[Black "Keures"]
[Result "0-1"]
[WhiteElo "2147"]
[BlackElo "2308"]
[TimeControl "180+1"]
[EndTime "11:35:20 PDT"]
[Termination "Keures won on time"]

1. Nf3 {[%clk 0:03:00.9]} 1... Nf6 {[%clk 0:02:58.7]} 2. b3 {[%clk 0:02:58]}
2... g6 {[%clk 0:02:58.2]} 3. Bb2 {[%clk 0:02:58.2]} 3... Bg7 {[%clk 0:02:59.1]}
4. e3 {[%clk 0:02:58.5]} 4... O-O {[%clk 0:02:58.6]} 5. Be2 {[%clk 0:02:58.6]}
5... b6 {[%clk 0:02:57.5]} 6. d4 {[%clk 0:02:57.5]} 6... Bb7 {[%clk 0:02:56.1]}
7. c4 {[%clk 0:02:57.6]} 7... c5 {[%clk 0:02:51.6]} 8. O-O {[%clk 0:02:56.4]}
8... d6 {[%clk 0:02:48.7]} 9. Nc3 {[%clk 0:02:55.7]} 9... Nbd7 {[%clk
0:02:47.8]} 10. d5 {[%clk 0:02:53.8]} 10... Ne4 {[%clk 0:02:42.9]} 11. Qc2
{[%clk 0:02:52.7]} 11... Nxc3 {[%clk 0:02:41.6]} 12. Bxc3 {[%clk 0:02:52.1]}
12... Bxc3 {[%clk 0:02:41.8]} 13. Qxc3 {[%clk 0:02:51.8]} 13... e5 {[%clk
0:02:41.3]} 14. dxe6 {[%clk 0:02:49.6]} 14... fxe6 {[%clk 0:02:36.1]} 15. Rad1
{[%clk 0:02:49.3]} 15... Qe7 {[%clk 0:02:35.9]} 16. Qd2 {[%clk 0:02:43.5]} 16...
d5 {[%clk 0:02:30.3]} 17. cxd5 {[%clk 0:02:41.6]} 17... exd5 {[%clk 0:02:26.6]}
18. Bb5 {[%clk 0:02:33.7]} 18... Ne5 {[%clk 0:02:07.9]} 19. Nxe5 {[%clk
0:02:29.9]} 19... Qxe5 {[%clk 0:02:08.8]} 20. Rfe1 {[%clk 0:02:27.3]} 20... Rad8
{[%clk 0:02:06]} 21. Bf1 {[%clk 0:02:16.6]} 21... Rd6 {[%clk 0:02:04.7]} 22. Qc2
{[%clk 0:02:12.2]} 22... Rdf6 {[%clk 0:01:59.3]} 23. Rd2 {[%clk 0:02:11]} 23...
Rf5 {[%clk 0:01:50.1]} 24. Red1 {[%clk 0:02:08.3]} 24... Rh5 {[%clk 0:01:49.3]}
25. g3 {[%clk 0:02:07.5]} 25... d4 {[%clk 0:01:32]} 26. Bg2 {[%clk 0:01:48]}
26... dxe3 {[%clk 0:01:24.5]} 27. fxe3 {[%clk 0:01:43.3]} 27... Qxe3+ {[%clk
0:01:23.3]} 28. Kh1 {[%clk 0:01:25.7]} 28... Bf3 {[%clk 0:00:50.4]} 29. Rd7
{[%clk 0:00:57.2]} 29... Bxd1 {[%clk 0:00:43.7]} 30. Qxd1 {[%clk 0:00:54.4]}
30... Re5 {[%clk 0:00:27.7]} 31. h4 {[%clk 0:00:41.6]} 31... Qe1+ {[%clk
0:00:26.5]} 32. Qxe1 {[%clk 0:00:41]} 32... Rxe1+ {[%clk 0:00:27.4]} 33. Kh2
{[%clk 0:00:40.9]} 33... Re5 {[%clk 0:00:26.2]} 34. Rxa7 {[%clk 0:00:39.3]}
34... Rf2 {[%clk 0:00:26.1]} 35. Kh3 {[%clk 0:00:36.8]} 35... Ree2 {[%clk
0:00:25.2]} 36. Bd5+ {[%clk 0:00:34.8]} 36... Kh8 {[%clk 0:00:23.7]} 37. Kg4
{[%clk 0:00:32.7]} 37... Rxa2 {[%clk 0:00:23.1]} 38. Rb7 {[%clk 0:00:30.5]}
38... Rad2 {[%clk 0:00:20]} 39. Bc4 {[%clk 0:00:23.7]} 39... Rf6 {[%clk
0:00:19.9]} 40. Kg5 {[%clk 0:00:19.4]} 40... Rfd6 {[%clk 0:00:19.5]} 41. Kh6
{[%clk 0:00:17]} 41... Rd7 {[%clk 0:00:14.6]} 42. Rxb6 {[%clk 0:00:14.7]} 42...
R2d6 {[%clk 0:00:14.9]} 43. Rb8+ {[%clk 0:00:14]} 43... Rd8 {[%clk 0:00:15.1]}
44. Rb7 {[%clk 0:00:14.1]} 44... R6d7 {[%clk 0:00:14.6]} 45. Rb6 {[%clk
0:00:13.7]} 45... Re7 {[%clk 0:00:12.2]} 46. g4 {[%clk 0:00:10.9]} 46... Rde8
{[%clk 0:00:09.3]} 47. h5 {[%clk 0:00:10.3]} 47... gxh5 {[%clk 0:00:09.3]} 48.
gxh5 {[%clk 0:00:07.5]} 48... Rd8 {[%clk 0:00:09.1]} 49. Rc6 {[%clk 0:00:06.3]}
49... Re5 {[%clk 0:00:08]} 50. Rf6 {[%clk 0:00:01.8]} 50... Re7 {[%clk
0:00:07.5]} 0-1

[Event "*** SCC Grand Prix: Titled Tuesday Blitz"]
[Site "Chess.com"]
[Date "2020.08.11"]
[Round "8"]
[White "AldokhinIvan"]
[Black "Matveev_Vladimir"]
[Result "0-1"]
[WhiteElo "2535"]
[BlackElo "2654"]
[TimeControl "180+1"]
[EndTime "11:35:21 PDT"]
[Termination "Matveev_Vladimir won on time"]

1. e4 {[%clk 0:03:00.9]} 1... c5 {[%clk 0:02:59.7]} 2. Nf3 {[%clk 0:03:00.8]}
2... d6 {[%clk 0:03:00.1]} 3. d4 {[%clk 0:03:01.4]} 3... cxd4 {[%clk 0:03:01]}
4. Nxd4 {[%clk 0:03:01.9]} 4... Nf6 {[%clk 0:03:01.5]} 5. Nc3 {[%clk 0:03:02.3]}
5... a6 {[%clk 0:03:01.2]} 6. Bg5 {[%clk 0:03:02.2]} 6... e6 {[%clk 0:03:01]} 7.
Qd2 {[%clk 0:03:01.5]} 7... Be7 {[%clk 0:02:56.8]} 8. O-O-O {[%clk 0:03:00.7]}
8... Qc7 {[%clk 0:02:54.2]} 9. Be2 {[%clk 0:02:50.4]} 9... b5 {[%clk 0:02:51.7]}
10. a3 {[%clk 0:02:48.5]} 10... Bb7 {[%clk 0:02:49.5]} 11. Qe3 {[%clk 0:02:30]}
11... Nbd7 {[%clk 0:02:44.7]} 12. f4 {[%clk 0:02:28.5]} 12... Rc8 {[%clk
0:02:36.4]} 13. Bf3 {[%clk 0:02:21.1]} 13... h6 {[%clk 0:02:28.2]} 14. Bxf6
{[%clk 0:02:13.3]} 14... gxf6 {[%clk 0:02:17.3]} 15. Bh5 {[%clk 0:02:02.3]}
15... Nc5 {[%clk 0:01:46.4]} 16. Rhf1 {[%clk 0:01:42.5]} 16... e5 {[%clk
0:01:16.8]} 17. Nf5 {[%clk 0:01:17.1]} 17... Nxe4 {[%clk 0:01:14.1]} 18. Rd3
{[%clk 0:01:16.4]} 18... Rh7 {[%clk 0:00:48.4]} 19. Kb1 {[%clk 0:01:01.3]} 19...
d5 {[%clk 0:00:34.3]} 20. fxe5 {[%clk 0:00:36.8]} 20... fxe5 {[%clk 0:00:28]}
21. Nxe7 {[%clk 0:00:32.2]} 21... Nxc3+ {[%clk 0:00:15.7]} 22. Rxc3 {[%clk
0:00:30.6]} 22... Qxe7 {[%clk 0:00:16.6]} 23. Rxc8+ {[%clk 0:00:24]} 23... Bxc8
{[%clk 0:00:17.5]} 24. Qb6 {[%clk 0:00:20.6]} 24... Qe6 {[%clk 0:00:13.7]} 25.
Qc7 {[%clk 0:00:18.8]} 25... Rg7 {[%clk 0:00:12.5]} 26. g3 {[%clk 0:00:17.6]}
26... e4 {[%clk 0:00:11.2]} 27. h3 {[%clk 0:00:13.6]} 27... Bd7 {[%clk
0:00:10.2]} 28. Bg4 {[%clk 0:00:12.5]} 28... Qe7 {[%clk 0:00:07.3]} 29. Bxd7+
{[%clk 0:00:11.5]} 29... Qxd7 {[%clk 0:00:07.3]} 30. Qb8+ {[%clk 0:00:10.5]}
30... Qd8 {[%clk 0:00:06.2]} 31. Qe5+ {[%clk 0:00:09.3]} 31... Kf8 {[%clk
0:00:06.7]} 32. Rf6 {[%clk 0:00:08.8]} 32... Rg6 {[%clk 0:00:06]} 33. Rxg6
{[%clk 0:00:07.5]} 33... fxg6 {[%clk 0:00:06.9]} 34. Qh8+ {[%clk 0:00:07.7]}
34... Ke7 {[%clk 0:00:07.8]} 35. Qg7+ {[%clk 0:00:08]} 35... Kd6 {[%clk
0:00:07.6]} 36. Qxg6+ {[%clk 0:00:08.2]} 36... Kc5 {[%clk 0:00:07.8]} 37. Qxh6
{[%clk 0:00:08.4]} 37... Qe7 {[%clk 0:00:07.7]} 38. Qe3+ {[%clk 0:00:08.2]}
38... d4 {[%clk 0:00:07.9]} 39. Qe2 {[%clk 0:00:06]} 39... e3 {[%clk 0:00:07.8]}
40. h4 {[%clk 0:00:06.4]} 40... Qf6 {[%clk 0:00:06.8]} 41. c3 {[%clk 0:00:01.4]}
41... Qf5+ {[%clk 0:00:06.6]} 42. Ka1 {[%clk 0:00:01.1]} 42... Qf2 {[%clk
0:00:06.7]} 43. cxd4+ {[%clk 0:00:02]} 43... Kxd4 {[%clk 0:00:07.6]} 44. Qg4+
{[%clk 0:00:02.2]} 44... Kd3 {[%clk 0:00:07.7]} 45. Qd7+ {[%clk 0:00:01.7]}
45... Kc2 {[%clk 0:00:07.9]} 46. Qc6+ {[%clk 0:00:01.8]} 46... Kd1 {[%clk
0:00:08]} 47. Qd5+ {[%clk 0:00:02.1]} 47... Qd2 {[%clk 0:00:08.1]} 48. Qf3+
{[%clk 0:00:02.2]} 48... e2 {[%clk 0:00:08.2]} 49. h5 {[%clk 0:00:02.4]} 49...
Kc2 {[%clk 0:00:08.5]} 50. Ka2 {[%clk 0:00:02.5]} 50... e1=Q {[%clk 0:00:07.6]}
51. Qb3+ {[%clk 0:00:03.3]} 51... Kc1 {[%clk 0:00:07.6]} 52. h6 {[%clk
0:00:01.5]} 52... Qxh6 {[%clk 0:00:07.4]} 0-1

[Event "*** SCC Grand Prix: Titled Tuesday Blitz"]
[Site "Chess.com"]
[Date "2020.08.11"]
[Round "8"]
[White "esrosenberg"]
[Black "GracefulYear"]
[Result "1/2-1/2"]
[WhiteElo "2189"]
[BlackElo "2365"]
[TimeControl "180+1"]
[EndTime "11:35:23 PDT"]
[Termination "Game drawn - insufficient material"]

1. Nf3 {[%clk 0:03:00.9]} 1... b6 {[%clk 0:02:55.9]} 2. e4 {[%clk 0:02:59.9]}
2... Bb7 {[%clk 0:02:56.8]} 3. Nc3 {[%clk 0:02:59.8]} 3... d5 {[%clk 0:02:54.8]}
4. exd5 {[%clk 0:02:57.5]} 4... Bxd5 {[%clk 0:02:55.7]} 5. Nxd5 {[%clk
0:02:57.6]} 5... Qxd5 {[%clk 0:02:54.5]} 6. b3 {[%clk 0:02:49.7]} 6... Nf6
{[%clk 0:02:47]} 7. Bb2 {[%clk 0:02:42]} 7... e6 {[%clk 0:02:42.9]} 8. Bc4
{[%clk 0:02:37.1]} 8... Qb7 {[%clk 0:02:40.7]} 9. O-O {[%clk 0:02:31.3]} 9...
Be7 {[%clk 0:02:36.5]} 10. Re1 {[%clk 0:02:26.8]} 10... O-O {[%clk 0:02:35.1]}
11. Qe2 {[%clk 0:02:24.2]} 11... Nbd7 {[%clk 0:02:29.7]} 12. a3 {[%clk
0:02:19.3]} 12... a6 {[%clk 0:02:25.6]} 13. b4 {[%clk 0:02:19.2]} 13... b5
{[%clk 0:02:25]} 14. Bb3 {[%clk 0:02:17.1]} 14... c5 {[%clk 0:02:25.3]} 15. Bxe6
{[%clk 0:02:10.4]} 15... Rae8 {[%clk 0:02:10.9]} 16. Bxd7 {[%clk 0:01:58.1]}
16... Qxd7 {[%clk 0:02:11.8]} 17. Ne5 {[%clk 0:01:55.5]} 17... Qf5 {[%clk
0:02:06.2]} 18. d3 {[%clk 0:00:59]} 18... cxb4 {[%clk 0:02:00.2]} 19. axb4
{[%clk 0:00:46.5]} 19... Bxb4 {[%clk 0:01:54.4]} 20. c3 {[%clk 0:00:39.5]} 20...
Bd6 {[%clk 0:01:46.1]} 21. d4 {[%clk 0:00:39.8]} 21... Ng4 {[%clk 0:01:34]} 22.
Qxg4 {[%clk 0:00:35.2]} 22... Qc2 {[%clk 0:01:25.5]} 23. Ba3 {[%clk 0:00:21.9]}
23... Bxa3 {[%clk 0:01:09.9]} 24. Rxa3 {[%clk 0:00:22.8]} 24... f6 {[%clk
0:01:08.8]} 25. Rxa6 {[%clk 0:00:19.8]} 25... fxe5 {[%clk 0:01:08]} 26. Rf1
{[%clk 0:00:19.6]} 26... Qxc3 {[%clk 0:01:02.2]} 27. dxe5 {[%clk 0:00:18.4]}
27... Qxe5 {[%clk 0:01:01.1]} 28. h4 {[%clk 0:00:16.8]} 28... b4 {[%clk
0:01:00.4]} 29. Rb6 {[%clk 0:00:16.2]} 29... Rf4 {[%clk 0:00:57.5]} 30. Qg3
{[%clk 0:00:14.7]} 30... Ref8 {[%clk 0:00:54.4]} 31. Rb7 {[%clk 0:00:12.3]}
31... Qf6 {[%clk 0:00:53.5]} 32. h5 {[%clk 0:00:10.2]} 32... Rf5 {[%clk
0:00:38]} 33. h6 {[%clk 0:00:09.1]} 33... Qxh6 {[%clk 0:00:37.3]} 34. Rxb4
{[%clk 0:00:07.2]} 34... Rg5 {[%clk 0:00:37.2]} 35. Qb3+ {[%clk 0:00:06.7]}
35... Kh8 {[%clk 0:00:36.4]} 36. Rb8 {[%clk 0:00:06.5]} 36... Qf6 {[%clk
0:00:35.1]} 37. Rxf8+ {[%clk 0:00:06.5]} 37... Qxf8 {[%clk 0:00:36]} 38. f4
{[%clk 0:00:06.5]} 38... Rf5 {[%clk 0:00:34.3]} 39. g3 {[%clk 0:00:06.3]} 39...
h6 {[%clk 0:00:33.6]} 40. Kg2 {[%clk 0:00:06.2]} 40... Rc5 {[%clk 0:00:30.9]}
41. Rf2 {[%clk 0:00:04.7]} 41... Qa8+ {[%clk 0:00:30.6]} 42. Qf3 {[%clk
0:00:04.9]} 42... Qa4 {[%clk 0:00:28]} 43. Re2 {[%clk 0:00:04.5]} 43... Qd7
{[%clk 0:00:23.1]} 44. Qe3 {[%clk 0:00:04.6]} 44... Qc6+ {[%clk 0:00:20]} 45.
Qe4 {[%clk 0:00:05]} 45... Rd5 {[%clk 0:00:18.4]} 46. Qe8+ {[%clk 0:00:04.5]}
46... Qxe8 {[%clk 0:00:18.9]} 47. Rxe8+ {[%clk 0:00:03.7]} 47... Kh7 {[%clk
0:00:19.8]} 48. Re2 {[%clk 0:00:04.2]} 48... Kg6 {[%clk 0:00:19.8]} 49. Kf3
{[%clk 0:00:04.7]} 49... h5 {[%clk 0:00:20.2]} 50. Re6+ {[%clk 0:00:04.4]} 50...
Kf5 {[%clk 0:00:18.1]} 51. Re3 {[%clk 0:00:03.8]} 51... Ra5 {[%clk 0:00:17.3]}
52. Rd3 {[%clk 0:00:03.8]} 52... g5 {[%clk 0:00:16.2]} 53. fxg5 {[%clk
0:00:03.8]} 53... Kxg5 {[%clk 0:00:17.1]} 54. Re3 {[%clk 0:00:04.1]} 54... Rf5+
{[%clk 0:00:16.5]} 55. Kg2 {[%clk 0:00:04.3]} 55... Ra5 {[%clk 0:00:16.1]} 56.
Kf3 {[%clk 0:00:04.3]} 56... Ra2 {[%clk 0:00:16.6]} 57. Re5+ {[%clk 0:00:04.3]}
57... Kg6 {[%clk 0:00:17.2]} 58. Rb5 {[%clk 0:00:04.9]} 58... Ra4 {[%clk
0:00:15.6]} 59. Rb6+ {[%clk 0:00:04.8]} 59... Kh7 {[%clk 0:00:15.6]} 60. Rb5
{[%clk 0:00:05.7]} 60... Ra3+ {[%clk 0:00:14.3]} 61. Kg2 {[%clk 0:00:06.1]}
61... Kg6 {[%clk 0:00:13.6]} 62. Kh3 {[%clk 0:00:06.3]} 62... Ra6 {[%clk
0:00:10.3]} 63. Kh4 {[%clk 0:00:06]} 63... Ra4+ {[%clk 0:00:10.3]} 64. Kh3
{[%clk 0:00:06.5]} 64... Rg4 {[%clk 0:00:10.5]} 65. Rb6+ {[%clk 0:00:06.6]}
65... Kg5 {[%clk 0:00:10.2]} 66. Rb5+ {[%clk 0:00:07.1]} 66... Kh6 {[%clk
0:00:10.7]} 67. Rb6+ {[%clk 0:00:07.4]} 67... Rg6 {[%clk 0:00:11]} 68. Rxg6+
{[%clk 0:00:07.4]} 68... Kxg6 {[%clk 0:00:11.9]} 69. Kh4 {[%clk 0:00:08]} 69...
Kh6 {[%clk 0:00:12.3]} 70. g4 {[%clk 0:00:08.6]} 70... hxg4 {[%clk 0:00:12.5]}
71. Kxg4 {[%clk 0:00:09.1]} 1/2-1/2

[Event "*** SCC Grand Prix: Titled Tuesday Blitz"]
[Site "Chess.com"]
[Date "2020.08.11"]
[Round "8"]
[White "Chesswizard_2007"]
[Black "Kislov_Oleg"]
[Result "1/2-1/2"]
[WhiteElo "2499"]
[BlackElo "2388"]
[TimeControl "180+1"]
[EndTime "11:35:24 PDT"]
[Termination "Game drawn - insufficient material"]

1. Nf3 {[%clk 0:02:59.4]} 1... d5 {[%clk 0:02:59.3]} 2. c4 {[%clk 0:02:57.2]}
2... e6 {[%clk 0:02:58.1]} 3. g3 {[%clk 0:02:55.7]} 3... Nf6 {[%clk 0:02:57.1]}
4. Bg2 {[%clk 0:02:56.6]} 4... Be7 {[%clk 0:02:56]} 5. O-O {[%clk 0:02:57.5]}
5... O-O {[%clk 0:02:55.8]} 6. b3 {[%clk 0:02:57.6]} 6... c5 {[%clk 0:02:55.7]}
7. cxd5 {[%clk 0:02:55.8]} 7... exd5 {[%clk 0:02:54.7]} 8. d4 {[%clk 0:02:56.2]}
8... Nc6 {[%clk 0:02:51.5]} 9. Bb2 {[%clk 0:02:55.3]} 9... Bg4 {[%clk
0:02:46.9]} 10. dxc5 {[%clk 0:02:54.1]} 10... Bxc5 {[%clk 0:02:45.4]} 11. Nc3
{[%clk 0:02:53.6]} 11... a6 {[%clk 0:02:36.1]} 12. Rc1 {[%clk 0:02:52.4]} 12...
d4 {[%clk 0:02:26.5]} 13. Na4 {[%clk 0:02:50.8]} 13... Ba7 {[%clk 0:02:27.1]}
14. Nc5 {[%clk 0:02:51.1]} 14... Qe7 {[%clk 0:02:14.8]} 15. Nxb7 {[%clk
0:02:24.1]} 15... Rac8 {[%clk 0:02:06.9]} 16. h3 {[%clk 0:02:17.3]} 16... Bxf3
{[%clk 0:01:47.2]} 17. Bxf3 {[%clk 0:02:18.2]} 17... Qxb7 {[%clk 0:01:46.1]} 18.
Qc2 {[%clk 0:02:18]} 18... Nb4 {[%clk 0:01:36.8]} 19. Bxb7 {[%clk 0:02:10.6]}
19... Rxc2 {[%clk 0:01:36]} 20. Ba3 {[%clk 0:02:08.9]} 20... Rxc1 {[%clk
0:01:23.6]} 21. Rxc1 {[%clk 0:02:09.8]} 21... a5 {[%clk 0:01:23.9]} 22. Rc4
{[%clk 0:01:58.2]} 22... Rb8 {[%clk 0:01:21.9]} 23. Bxb4 {[%clk 0:01:49.8]}
23... axb4 {[%clk 0:01:18.1]} 24. Rxb4 {[%clk 0:01:18.2]} 24... Ne8 {[%clk
0:01:14.5]} 25. a3 {[%clk 0:01:17.2]} 25... Nd6 {[%clk 0:01:10.8]} 26. Bd5
{[%clk 0:01:15.5]} 26... Rxb4 {[%clk 0:01:08.8]} 27. axb4 {[%clk 0:01:16.4]}
27... Kf8 {[%clk 0:01:06.8]} 28. Kg2 {[%clk 0:01:15.2]} 28... Ke7 {[%clk
0:01:05.6]} 29. Kf3 {[%clk 0:01:15.4]} 29... f6 {[%clk 0:01:00]} 30. h4 {[%clk
0:01:15]} 30... Nb5 {[%clk 0:00:51.6]} 31. Be4 {[%clk 0:01:11.3]} 31... h6
{[%clk 0:00:46.8]} 32. Kg4 {[%clk 0:01:10.4]} 32... Nd6 {[%clk 0:00:42.1]} 33.
Bd3 {[%clk 0:01:10.2]} 33... Kf7 {[%clk 0:00:40.8]} 34. Kh5 {[%clk 0:01:05.5]}
34... Bb6 {[%clk 0:00:38.7]} 35. g4 {[%clk 0:01:03.7]} 35... Bc7 {[%clk
0:00:34.8]} 36. g5 {[%clk 0:01:02.7]} 36... hxg5 {[%clk 0:00:34.4]} 37. hxg5
{[%clk 0:01:03.6]} 37... f5 {[%clk 0:00:35.1]} 38. Bc4+ {[%clk 0:00:50.5]} 38...
Nxc4 {[%clk 0:00:31.3]} 39. bxc4 {[%clk 0:00:51.4]} 39... Bd6 {[%clk 0:00:29]}
40. c5 {[%clk 0:00:49.1]} 40... g6+ {[%clk 0:00:27.1]} 41. Kh6 {[%clk
0:00:43.5]} 41... Bf8+ {[%clk 0:00:19]} 42. Kh7 {[%clk 0:00:43.7]} 42... f4
{[%clk 0:00:18.7]} 43. f3 {[%clk 0:00:44.1]} 43... Be7 {[%clk 0:00:14.6]} 44. c6
{[%clk 0:00:43.5]} 44... Bd8 {[%clk 0:00:12.6]} 45. b5 {[%clk 0:00:40.5]} 45...
Bb6 {[%clk 0:00:12]} 46. Kh6 {[%clk 0:00:39.8]} 46... Bc7 {[%clk 0:00:10.6]} 47.
Kh7 {[%clk 0:00:34.2]} 47... Bb6 {[%clk 0:00:09.8]} 48. Kh8 {[%clk 0:00:28.8]}
48... Ke6 {[%clk 0:00:09.2]} 49. Kg7 {[%clk 0:00:29.1]} 49... Kf5 {[%clk
0:00:09.7]} 50. Kf7 {[%clk 0:00:27.6]} 50... Kxg5 {[%clk 0:00:09.2]} 51. Ke6
{[%clk 0:00:28.2]} 51... Kh4 {[%clk 0:00:07.7]} 52. Kd7 {[%clk 0:00:28]} 52...
g5 {[%clk 0:00:07.4]} 53. c7 {[%clk 0:00:28.4]} 53... Bxc7 {[%clk 0:00:07.7]}
54. Kxc7 {[%clk 0:00:29.3]} 54... d3 {[%clk 0:00:08.1]} 55. exd3 {[%clk
0:00:28]} 55... g4 {[%clk 0:00:08.6]} 56. fxg4 {[%clk 0:00:17.5]} 56... f3
{[%clk 0:00:09]} 57. b6 {[%clk 0:00:18]} 57... f2 {[%clk 0:00:09.7]} 58. b7
{[%clk 0:00:18.9]} 58... f1=Q {[%clk 0:00:10.6]} 59. b8=Q {[%clk 0:00:19.8]}
59... Qxd3 {[%clk 0:00:08.7]} 60. Qg8 {[%clk 0:00:18.3]} 60... Qc3+ {[%clk
0:00:06.9]} 61. Kd7 {[%clk 0:00:15.1]} 61... Qd4+ {[%clk 0:00:07.1]} 62. Kc6
{[%clk 0:00:15.4]} 62... Qxg4 {[%clk 0:00:07.1]} 63. Qh8+ {[%clk 0:00:16]} 63...
Kg3 {[%clk 0:00:07.3]} 64. Qc3+ {[%clk 0:00:15.7]} 64... Qf3+ {[%clk 0:00:07.6]}
65. Qxf3+ {[%clk 0:00:14.9]} 65... Kxf3 {[%clk 0:00:08]} 1/2-1/2